[Event "1st Semana Santa Torrevieja 2022"]
[Site "Torrevieja Alicante"]
[Date "2022.04.14"]
[Round "3.12"]
[White "Carbonell Sancho, Marc"]
[Black "Rakotomaharo, Fy Antenaina"]
[Result "0-1"]
[ECO "C51"]
[WhiteElo "2215"]
[BlackElo "2474"]
[Annotator "TA"]
[PlyCount "82"]
[EventDate "2022.04.12"]
[EventType "swiss"]
[EventCountry "ESP"]
[SourceTitle "playchess.com"]
[Source "ChessBase"]
[SourceQuality "1"]
[TimeControl "5400+30"]

{[%evp 12,82,0,0,0,0,0,0,0,0,0,0,0,0,3,0,0,0,0,-34,-4,-14,0,-89,-83,-176,-172,-172,-154,-175,-166,-422,-339,-336,-337,-329,-326,-370,-367,-658,-236,-360,-354,-432,-441,-437,-427,-433,-435,-425,-425,-786,-772,-716,-657,-677,-441,-1038,-1031,-986,-992,-29967,-29970,-29968,-29970,-29970,-29971,-29966,-356,-29958,-29954,-1756,-806]} 1. e4 {[%emt 0:01:55] Postny,E} e5 {[%emt 0:00:06]} 2. Nf3 {[%emt 0:00:06]} Nc6 {[%emt 0:00:06]} 3. Bc4 {[%emt 0:00:07]} Bc5 {[%emt 0:00:05]} 4. b4 {[%emt 0:00:13]} Bxb4 {[%emt 0:00:45]} 5. c3 {[%emt 0:00:07]} Be7 {[%emt 0:00:03]} 6. d4 {[%emt 0:00:04]} Na5 {[%emt 0:00:04]} 7. Bd3 {[%emt 0:00:05]} d6 {[%emt 0:00:34] C51: Evans Gambit: Declined and Accepted without 5...Ba5.} 8. dxe5 {[%emt 0:00:10]} dxe5 {[%emt 0:00:10]} 9. Nxe5 {[%emt 0:00:08]} Nf6 {[%emt 0:00:25] The position is equal.} 10. O-O {[%emt 0:00:10]} O-O {[%emt 0:00:52]} 11. Qc2 {[%emt 0:00:05]} Qd6 {[%emt 0:18:10]} 12. Nf3 {[%emt 0:00:06] [#]} Nd7 $146 {[%emt 0:00:04] Against e5} ({Predecessor:} 12... Rd8 13. Be2 Qc6 14. Nbd2 Be6 15. e5 Nd5 16. Ne4 Nb4 17. Qb1 Bxa2 18. Rxa2 Nxa2 {½-½ (60) Ganguly,S (2619)-Postny,E (2641) Porto Rio 2014 CBM 161 [Postny,E]}) 13. Rd1 {[%emt 0:15:42][%cal Oe4e5] Hoping for e5!} Ne5 {[%emt 0:02:30]} 14. Nxe5 {[%emt 0:00:52]} Qxe5 {[%emt 0:00:07]} 15. f4 {[%emt 0:00:15]} Bc5+ {[%emt 0:07:05]} 16. Kh1 {[%emt 0:00:08]} Qh5 $36 {[%emt 0:00:14][%mdl 2048] Black is more active.} 17. Rf1 {[%emt 0:21:28]} (17. Re1 $11) 17... Bg4 $1 $17 {[%emt 0:07:29] &Nero is more active. Black continues to play with concentration.} 18. e5 {[%emt 0:06:55] [#]} (18. Ba3 $17 {might work better.}) 18... Rfd8 $1 $19 {[%emt 0:08:22][%cal Bf8d8,Bd8d7,Bd7d3][%mdl 32]} 19. Ba3 {[%emt 0:01:02]} Bb6 {[%emt 0:00:11][%cal Od8d3] aiming for ...Rxd3!} 20. Re1 {[%emt 0:14:32]} Rd7 {[%emt 0:07:14]} 21. c4 $2 {[%emt 0:05:01]} (21. Bb5 Nc6 22. Bxc6 bxc6 23. Nd2) 21... Rad8 {[%emt 0:08:51]} 22. c5 {[%emt 0:06:06]} Rxd3 {[%emt 0:05:23]} 23. cxb6 {[%emt 0:00:08]} Qh4 {[%emt 0:01:23][%cal Rh4e1]} (23... axb6 $2 24. Bd6 Qf5 25. Qxc7 $17) (23... cxb6 $2 24. Bb4 $19) 24. Bb4 {[%emt 0:07:18]} axb6 {[%emt 0:06:35]} 25. Qxc7 {[%emt 0:05:31]} (25. Rf1) 25... Qf2 $2 {[%emt 0:00:27]} (25... Nc6 26. Bc3 Rh3 27. gxh3 Bf3+ 28. Kg1 Qxh3 29. Qxd8+ (29. Kf2 $2 Rd3 $19) 29... Nxd8) 26. Nd2 {[%emt 0:01:38]} (26. e6 {was forced.} Bxe6 27. Bxa5 bxa5 28. Nc3) 26... R3d7 {[%emt 0:03:49]} ({Stronger than} 26... Rxd2 27. Bxd2 Qxd2 28. h3 $17) ({Less strong is} 26... Qxf4 27. Bxa5 (27. Re4 Qg5 $17) 27... bxa5 {[#]} 28. Rf1 $1 $16) 27. Qc1 {[%emt 0:02:47]} Rxd2 {[%emt 0:00:29]} 28. Bxd2 {[%emt 0:00:04]} Rxd2 {[%emt 0:00:15][%csl Gd2][%cal Rf2g2]} 29. Rg1 {[%emt 0:00:11]} h5 {[%emt 0:04:44]} ({Avoid the trap} 29... Qxf4 $2 30. Qc7 Qg5 31. Rac1 $19) 30. Qf1 {[%emt 0:02:50]} Qd4 {[%emt 0:00:33] ...Nc4 is the strong threat.} 31. Re1 {[%emt 0:01:40]} (31. f5 $142) 31... Nc4 {[%emt 0:05:52][%cal Ba5c4,Bc4d2,Bd2e4,Be4f2][%mdl 32]} 32. h3 {[%emt 0:02:10]} Be6 {[%emt 0:02:00] And now ...Bd5 would win.} 33. Rd1 {[%emt 0:06:00]} g6 {[%emt 0:02:08][%cal Bg7g6,Bg6g5][%mdl 32] White must now prevent ...Bd5.} 34. Qf3 {[%emt 0:01:15]} (34. Qe1 $142) 34... Bd5 {[%emt 0:01:09]} 35. Rxd2 {[%emt 0:00:03]} Nxd2 {[%emt 0:02:18][%mdl 64] Discovered Attack} 36. Qg3 {[%emt 0:00:34]} Ne4 {[%emt 0:00:13]} 37. Qh4 {[%emt 0:00:09]} g5 {[%emt 0:00:38]} 38. Qe1 {[%emt 0:00:04]} Nf2+ {[%emt 0:00:27]} 39. Kh2 {[%emt 0:00:04]} Qxf4+ {[%emt 0:00:16]} 40. g3 {[%emt 0:00:04]} Qf5 {[%emt 0:00:09][%csl Gf2][%cal Rf5h3]} 41. Qf1 {[%emt 0:00:29]} Qc2 {[%emt 0:00:20] Weighted Error Value: White=0.85/Black=0.24 (precise)} (41... Kg7 $142 42. a3 h4) 0-1

[Event "1st Semana Santa Torrevieja 2022"]
[Site "Torrevieja Alicante"]
[Date "2022.04.14"]
[Round "3.13"]
[White "Vrolijk, Liam"]
[Black "Rudzinska, Michalina"]
[Result "1-0"]
[ECO "A61"]
[WhiteElo "2480"]
[BlackElo "2211"]
[Annotator "TA"]
[PlyCount "85"]
[EventDate "2022.04.12"]
[EventType "swiss"]
[EventCountry "ESP"]
[SourceTitle "playchess.com"]
[Source "ChessBase"]
[SourceQuality "1"]
[TimeControl "5400+30"]

{[%evp 18,85,52,49,47,34,45,45,36,43,51,45,42,41,46,43,69,68,60,52,80,52,71,68,45,35,39,0,0,0,208,222,212,224,233,246,261,255,261,263,251,242,236,228,662,623,743,740,1079,1046,1006,937,962,835,1135,1130,987,787,764,757,730,730,978,960,829,775,12837,12837,12837,1177]} 1. d4 {[%emt 0:00:04]} Nf6 {[%emt 0:00:08]} 2. c4 {[%emt 0:00:05]} e6 {[%emt 0:00:08]} 3. Bf4 {[%emt 0:00:14]} c5 {[%emt 0:01:04]} 4. d5 {[%emt 0:00:35]} exd5 {[%emt 0:00:09]} 5. cxd5 {[%emt 0:00:08]} d6 {[%emt 0:00:12]} 6. Nc3 {[%emt 0:01:13]} g6 {[%emt 0:00:31]} 7. Nf3 {[%emt 0:00:25]} a6 {[%emt 0:00:11]} 8. a4 {[%emt 0:00:17]} Bg7 {[%emt 0:00:09]} 9. h3 {[%emt 0:00:20]} O-O {[%emt 0:00:09]} 10. e3 {[%emt 0:00:08]} Ne8 {[%emt 0:00:19] A61: Modern Benoni: Nf3 without early e4.} 11. Be2 {[%emt 0:00:53]} Nd7 {[%emt 0:00:14]} 12. a5 {[%emt 0:00:06]} Qe7 {[%emt 0:04:27] White is slightly better.} 13. O-O {[%emt 0:01:28]} Ne5 {[%emt 0:00:46]} 14. Bxe5 {[%emt 0:12:02]} Bxe5 {[%emt 0:00:22]} 15. Nxe5 {[%emt 0:00:09]} Qxe5 {[%emt 0:00:06]} 16. Qd2 {[%emt 0:00:36] [#]} Nf6 $146 {[%emt 0:08:23]} ({Predecessor:} 16... Bd7 17. f4 Qg7 18. Bc4 g5 19. fxg5 Qxg5 20. Rf3 f5 21. Qf2 Ng7 22. e4 Qe7 {½-½ (35) Lysyj,I (2596)-Indjic,A (2628) Mali Losinj 2019}) 17. f4 {[%emt 0:09:30]} Qe7 {[%emt 0:00:54]} 18. Bd3 {[%emt 0:02:25]} Rb8 {[%emt 0:04:14]} 19. e4 {[%emt 0:02:17]} b5 {[%emt 0:01:11]} 20. axb6 {[%emt 0:04:46]} Rxb6 {[%emt 0:00:08]} 21. Rfe1 {[%emt 0:08:43]} Rb4 {[%emt 0:07:56]} 22. Ra4 {[%emt 0:04:06]} Re8 {[%emt 0:07:02]} 23. e5 {[%emt 0:09:43]} Nh5 $2 {[%emt 0:15:11] White leaves nothing to chance now.} (23... dxe5 $11 {and Black stays safe.} 24. Rxe5 Qd8) 24. Rxb4 $18 {[%emt 0:01:27]} cxb4 {[%emt 0:00:08]} 25. Ne4 {[%emt 0:00:07][%csl LRb4,LRd6] g4 is the strong threat.} dxe5 {[%emt 0:01:56]} 26. fxe5 {[%emt 0:00:34]} Rd8 {[%emt 0:06:19]} 27. Nd6 {[%emt 0:07:22]} ({Resist} 27. g4 f5 $18) 27... Qa7+ {[%emt 0:03:09]} 28. Qf2 {[%emt 0:01:37] Active counter play!} Qxf2+ {[%emt 0:01:19]} 29. Kxf2 {[%emt 0:00:08]} Nf4 {[%emt 0:00:44]} 30. Bc4 {[%emt 0:00:46]} f6 $2 {[%emt 0:09:00]} (30... g5 31. b3 Ng6 32. Nxc8 Rxc8 33. Bxa6 Rd8) 31. Nxc8 {[%emt 0:02:49] White is clearly winning.} Rxc8 {[%emt 0:00:07] [#]} 32. e6 $1 {[%emt 0:01:16][%cal Od5d6,Be5e6,Be6e7][%mdl 32] aiming for d6!} Rxc4 {[%emt 0:04:37][%mdl 4096] Endgame KRN-KR} (32... Kf8 33. e7+) 33. e7 {[%emt 0:00:08]} Rc8 {[%emt 0:00:38]} 34. d6 {[%emt 0:02:58]} Nd3+ {[%emt 0:00:32]} 35. Kf1 {[%emt 0:01:55] White threatens d7 and mate.} Kf7 {[%emt 0:00:38]} 36. d7 {[%emt 0:00:11]} Re8 {[%emt 0:00:10]} 37. d8=Q {[%emt 0:00:26]} ({Less strong is} 37. dxe8=R Kxe8 38. Ra1 Kxe7 $16) 37... Nxe1 {[%emt 0:00:08]} 38. Kxe1 {[%emt 0:01:24]} Rxe7+ {[%emt 0:00:07] KQ-KR} 39. Kf2 {[%emt 0:00:19]} f5 {[%emt 0:00:22]} 40. Qd5+ {[%emt 0:01:30]} Kf8 {[%emt 0:00:20]} 41. Qc5 {[%emt 0:01:06]} a5 {[%emt 0:00:14]} 42. g4 {[%emt 0:00:17]} Ke8 {[%emt 0:01:33]} 43. Qxa5 {[%emt 0:00:37] Weighted Error Value: White=0.06 (flawless) /Black=0.48} (43. gxf5 $142 gxf5 44. Qc8+ Kf7 45. Qxf5+ Ke8 46. Qxa5) 1-0

[Event "1st Semana Santa Torrevieja 2022"]
[Site "Torrevieja Alicante"]
[Date "2022.04.14"]
[Round "3.14"]
[White "Ulasevich, Sergei"]
[Black "Gomez Ledo, Roberto Carlos"]
[Result "0-1"]
[ECO "C84"]
[WhiteElo "2199"]
[BlackElo "2471"]
[Annotator "TA"]
[PlyCount "134"]
[EventDate "2022.04.12"]
[EventType "swiss"]
[EventCountry "ESP"]
[SourceTitle "playchess.com"]
[Source "ChessBase"]
[SourceQuality "1"]
[TimeControl "5400+30"]

{[%evp 16,134,15,18,44,34,43,27,39,25,25,25,22,6,29,8,35,20,36,28,16,20,17,22,24,18,13,0,6,-5,2,12,18,2,8,0,5,0,0,0,0,0,0,-4,-7,-14,0,-25,-1,-16,-16,-16,-16,-17,-8,-11,-4,-9,-12,-22,-10,-18,-3,-33,-23,-32,-16,-32,-21,-33,-16,-25,-5,-28,-34,-52,-27,-52,-51,-51,-51,-51,-51,-56,-55,-62,-46,-93,-58,-81,-8,-197,-46,-225,-112,-347,-347,-535,-548,-563,-566,-556,-488,-641,-633,-767,-605,-1853,-1283,-1766,-1620,-1756,-1501,-1254,-1236,-980,-796,-814,-719,-2102,-1302]} 1. e4 {[%emt 0:00:06]} e5 {[%emt 0:04:13]} 2. Nf3 {[%emt 0:00:07]} Nc6 {[%emt 0:00:16]} 3. Bb5 {[%emt 0:00:55]} a6 {[%emt 0:00:32]} 4. Ba4 {[%emt 0:00:07]} Nf6 {[%emt 0:00:24]} 5. O-O {[%emt 0:00:08]} Be7 {[%emt 0:00:58]} 6. d3 {[%emt 0:00:22]} d6 {[%emt 0:00:29]} 7. c3 {[%emt 0:00:33]} O-O {[%emt 0:00:13]} 8. Re1 {[%emt 0:00:55]} b5 {[%emt 0:03:08] 8...Re8 deserves study.} 9. Bc2 {[%emt 0:00:10]} Nb8 {[%emt 0:00:09] C84: Closed Ruy Lopez: Unusual White 6th moves.} 10. a4 {[%emt 0:05:44]} Bb7 {[%emt 0:00:14]} 11. Nbd2 {[%emt 0:00:27][%cal Bb1d2,Bd2f1,Bf1g3][%mdl 32]} Nbd7 {[%emt 0:00:23] White has an edge.} 12. Nf1 {[%emt 0:00:11]} Re8 {[%emt 0:04:31]} 13. Ng3 {[%emt 0:01:51]} g6 {[%emt 0:00:07]} 14. d4 {[%emt 0:04:16]} (14. Bh6 {looks sharper.} c5 15. Qd2 Qc7 16. Nf5) 14... Bf8 {[%emt 0:00:56]} 15. Bd3 {[%emt 0:13:39]} c6 {[%emt 0:01:58]} 16. h3 {[%emt 0:01:00] [#]} Nb6 $146 {[%emt 0:01:46]} (16... exd4 {with more complications.} 17. cxd4 c5 18. Bg5 cxd4 19. axb5 axb5 20. Rxa8 Qxa8 21. Bxb5 Qa5) ({Predecessor:} 16... Bg7 17. Bg5 Qe7 18. Qc2 Qf8 19. Red1 Rac8 20. Qb1 Nb6 21. b3 Rc7 22. Ra2 Nbd7 23. Re2 Rb8 {1-0 (69) Zhigalko,A (2598)-Maiorov,N (2572) Minsk 2016}) 17. axb5 {[%emt 0:01:28]} axb5 {[%emt 0:10:00]} 18. Bg5 {[%emt 0:04:15]} Rxa1 {[%emt 0:08:48]} 19. Qxa1 {[%emt 0:00:11] Hoping for Bxf6.} Bg7 {[%emt 0:00:20]} 20. dxe5 {[%emt 0:12:32]} dxe5 {[%emt 0:00:14]} 21. Bf1 {[%emt 0:00:16]} Qc7 {[%emt 0:03:08]} 22. b3 {[%emt 0:04:07]} Nbd7 {[%emt 0:07:35]} 23. Qc1 {[%emt 0:04:47]} Nf8 {[%emt 0:09:21]} 24. Bh6 {[%emt 0:03:28]} Ne6 {[%emt 0:02:01]} 25. Bxg7 {[%emt 0:06:07]} Kxg7 {[%emt 0:00:24]} 26. Qe3 {[%emt 0:07:47]} h6 {[%emt 0:07:14]} 27. Ra1 {[%emt 0:01:32]} Ra8 {[%emt 0:01:19]} 28. Rxa8 {[%emt 0:07:24]} Bxa8 {[%emt 0:00:07]} 29. b4 {[%emt 0:00:07]} Bb7 {[%emt 0:04:11]} 30. Qa7 {[%emt 0:03:16]} Nd7 {[%emt 0:02:38]} 31. Be2 {[%emt 0:00:58]} Bc8 {[%emt 0:01:11]} 32. Qxc7 {[%emt 0:00:46]} Nxc7 {[%emt 0:00:08][%cal Be6c7,Bc7e8,Be8d6][%mdl 32]} 33. Kf1 {[%emt 0:04:04]} Kf6 {[%emt 0:00:48]} 34. Bd3 {[%emt 0:02:59]} Nb6 {[%emt 0:00:54]} 35. Ke1 {[%emt 0:00:36]} Ne8 {[%emt 0:01:20]} 36. Ne2 {[%emt 0:00:50]} Nd6 {[%emt 0:00:13]} 37. Nc1 {[%emt 0:00:36]} Be6 {[%emt 0:00:18]} 38. Kd2 {[%emt 0:03:09]} Nd7 {[%emt 0:01:28]} 39. Ke2 {[%emt 0:01:11]} Ke7 {[%emt 0:00:44]} 40. Nd2 {[%emt 0:00:18]} f5 {[%emt 0:00:28]} 41. f3 {[%emt 0:01:42]} f4 {[%emt 0:00:59]} 42. Bc2 {[%emt 0:00:44]} Nb6 {[%emt 0:01:22]} 43. Bb3 {[%emt 0:01:34]} Bc4+ {[%emt 0:01:02]} 44. Bxc4 {[%emt 0:00:57]} bxc4 $11 {[%emt 0:00:56][%mdl 4096] Endgame KNN-KNN} 45. Nf1 {[%emt 0:01:23]} Kf6 {[%emt 0:01:34]} 46. Kd2 {[%emt 0:00:41]} Kg5 {[%emt 0:00:52]} 47. Ne2 {[%emt 0:00:47]} Kh4 {[%emt 0:00:17]} 48. Ke1 {[%emt 0:00:53]} Na4 {[%emt 0:01:35]} 49. Nd2 {[%emt 0:01:48]} Nb2 {[%emt 0:01:29]} 50. Kf2 {[%emt 0:00:40]} h5 {[%emt 0:00:57]} 51. Kg1 {[%emt 0:00:12]} (51. Kf1 $15 {deserves consideration.}) 51... Nd1 {[%emt 0:00:57]} 52. Kh2 {[%emt 0:00:10]} Kg5 {[%emt 0:00:29] &Nero is more active.} (52... Nf2 $1 $17) 53. Kg1 $2 {[%emt 0:00:33] [#] White is on the road to losing.} (53. g3 $11 {and White has nothing to worry.}) 53... Kf6 $2 {[%emt 0:00:13]} (53... h4 $1 $19 54. Kf1 Ne3+ 55. Kg1 Nb5) 54. Kh2 $2 {[%emt 0:00:20] [#]} (54. h4 $1 $15) 54... g5 {[%emt 0:01:35]} (54... h4 $1 $19 {and Black stays clearly on top.} 55. Kg1 Ke7) 55. Nf1 $2 {[%emt 0:01:13]} (55. g3 $17) 55... g4 $19 {[%emt 0:03:32]} 56. hxg4 {[%emt 0:00:03]} (56. Kg1 $142 gxh3 57. gxh3) 56... hxg4 {[%emt 0:00:06] Black is clearly winning.} 57. Nd2 {[%emt 0:00:32]} g3+ {[%emt 0:00:44]} 58. Kg1 {[%emt 0:00:03]} Ke6 {[%emt 0:00:29]} 59. Nb1 {[%emt 0:00:28]} Nb5 {[%emt 0:00:22] Prevents Na3.} 60. Nd2 {[%emt 0:00:55]} Ndxc3 {[%emt 0:00:57]} 61. Nxc3 {[%emt 0:00:06]} Nxc3 {[%emt 0:00:06]} 62. Nxc4 {[%emt 0:00:03] KN-KN} Na2 {[%emt 0:00:07]} 63. Kf1 {[%emt 0:00:22]} Nxb4 {[%emt 0:00:07] And now ...c5 would win.} 64. Ke2 {[%emt 0:00:05]} Nc2 {[%emt 0:00:11]} 65. Kd2 {[%emt 0:00:31]} Nd4 {[%emt 0:01:00][%cal Od4f3] ...Nxf3+! is the strong threat.} 66. Ke1 {[%emt 0:00:35]} c5 {[%emt 0:00:10]} 67. Nb6 {[%emt 0:00:27]} Nc2+ {[%emt 0:00:13] Weighted Error Value: White=0.34/Black=0.17 (very precise)} 0-1

[Event "1st Semana Santa Torrevieja 2022"]
[Site "Torrevieja Alicante"]
[Date "2022.04.14"]
[Round "3.15"]
[White "Camacho Collados, Marcos"]
[Black "Rodriguez Ferraz, Borja"]
[Result "1/2-1/2"]
[ECO "A07"]
[WhiteElo "2462"]
[BlackElo "2223"]
[Annotator "TA"]
[PlyCount "127"]
[EventDate "2022.04.12"]
[EventType "swiss"]
[EventCountry "ESP"]
[SourceTitle "playchess.com"]
[Source "ChessBase"]
[SourceQuality "1"]
[TimeControl "5400+30"]

{[%evp 9,127,0,16,16,14,6,25,12,21,6,14,10,16,-43,-17,-65,0,27,77,23,78,42,31,26,81,70,79,78,84,18,20,16,150,133,109,92,204,94,113,115,114,51,79,61,115,114,270,264,295,281,285,176,191,180,181,179,172,183,358,365,337,333,303,14,536,78,692,669,766,763,840,901,702,388,566,453,411,311,291,278,392,227,216,154,251,0,0,0,0,0,0,0,0,0,0,0,0,0,0,0,0,0,0,0,0,0,0,0,0,0,0,0,0,0,0,0,0,0,0,-10]} 1. Nf3 {[%emt 0:06:37]} Nf6 {[%emt 0:00:23]} 2. g3 {[%emt 0:00:11]} e6 {[%emt 0:00:15]} 3. Bg2 {[%emt 0:00:10]} d5 {[%emt 0:01:14]} 4. O-O {[%emt 0:00:25]} Bd6 {[%emt 0:00:21]} 5. d3 {[%emt 0:03:55]} h6 {[%emt 0:02:08]} 6. Nc3 {[%emt 0:05:11] [#] A07: Réti Opening: New York and Capablanca Systems.} e5 $146 {[%emt 0:10:24]} ({Predecessor:} 6... Bd7 7. e4 dxe4 8. dxe4 e5 9. h3 O-O 10. Be3 Re8 11. Qd2 a6 12. Rad1 Nc6 13. Nh4 {1-0 (46) Krasnov,S (1998)-Karweit,A San Francisco 2017}) 7. e4 {[%emt 0:00:17]} d4 {[%emt 0:01:08]} 8. Ne2 {[%emt 0:02:58] White has an edge.} c5 {[%emt 0:04:10]} 9. c3 {[%emt 0:04:39][%cal Ob2b4]} Nc6 {[%emt 0:01:15] Prevents b4.} 10. cxd4 {[%emt 0:00:10]} cxd4 {[%emt 0:00:16] [#]} 11. Bd2 {[%emt 0:11:19]} (11. Nexd4 $1 $11 exd4 12. e5) 11... Qb6 {[%emt 0:06:19]} 12. Nh4 {[%emt 0:03:42]} (12. b4 $11 {feels stronger.}) 12... g6 {[%emt 0:00:46]} (12... Qxb2 $15 13. f4 O-O) 13. b4 $11 {[%emt 0:14:36]} Bg4 {[%emt 0:36:17]} (13... Nxb4 $2 14. Rb1 $18) (13... Bxb4 $11 14. Rb1 Qc5) 14. f4 {[%emt 0:06:22]} (14. h3 $16 Bd7 15. f4) 14... Nd7 {[%emt 0:01:39]} (14... Bxb4 $11 15. Rb1 Bxd2 16. Qxd2 (16. Rxb6 Be3+ 17. Kh1 axb6 $11) 16... Qa6) 15. h3 {[%emt 0:01:26]} Bxe2 {[%emt 0:00:28]} 16. Qxe2 {[%emt 0:00:03]} a5 {[%emt 0:14:39]} (16... Nxb4 $2 17. Rfb1 $18) (16... Bxb4 $11 {keeps the balance.} 17. Bxb4 Qxb4) 17. bxa5 $16 {[%emt 0:01:15]} Nxa5 {[%emt 0:01:23]} 18. Nf3 {[%emt 0:03:27]} Nc6 {[%emt 0:00:26]} 19. h4 {[%emt 0:03:01]} (19. a4 $16) 19... Ra3 $11 {[%emt 0:03:01]} 20. Bc1 {[%emt 0:01:31]} Ra5 {[%emt 0:02:11]} (20... Rc3 $11) 21. Nd2 {[%emt 0:00:53]} Ra4 {[%emt 0:01:29]} 22. Bh3 {[%emt 0:08:00]} exf4 {[%emt 0:05:03]} (22... Qd8 $16) 23. gxf4 {[%emt 0:00:38]} (23. Rb1 $18 Qa7 24. e5) 23... Be7 $16 {[%emt 0:00:14]} 24. e5 {[%emt 0:08:57]} Nc5 {[%emt 0:03:03]} 25. Ne4 {[%emt 0:01:13]} (25. Nc4 $1 $16 {[%cal Rc4b6]} Qa6 26. e6 fxe6 27. Bxe6 Nxe6 28. Qxe6) 25... Nxe4 $14 {[%emt 0:00:49]} 26. Qxe4 {[%emt 0:00:02] Hoping for f5.} Nb4 {[%emt 0:00:56]} (26... Rg8 $14) 27. Bd2 {[%emt 0:04:41] Rab1 is the strong threat.} Qa6 $2 {[%emt 0:01:59]} (27... Qc6 $16 {was called for.}) 28. Bxb4 $18 {[%emt 0:00:57]} (28. Qxd4 O-O 29. Qd7 Qxd3 $1 30. Qxd3 Nxd3 $17) 28... Rxb4 {[%emt 0:00:02]} 29. Rac1 {[%emt 0:01:24][%cal Ba1c1,Bc1c7,Bc7d7][%mdl 32] Inhibits Qc6.} O-O {[%emt 0:00:37]} 30. Rc7 {[%emt 0:02:15]} Bd8 {[%emt 0:00:42]} 31. Rd7 {[%emt 0:00:09] Threatens to win with f5.} Qc6 {[%emt 0:00:10]} 32. Qxc6 {[%emt 0:01:17]} bxc6 {[%emt 0:00:05]} 33. h5 {[%emt 0:01:02]} gxh5 {[%emt 0:01:15] [#]} (33... g5 34. fxg5 Bxg5) 34. Kh1 $1 {[%emt 0:01:11]} Kh8 {[%emt 0:00:41] [#]} 35. Rg1 $1 {[%emt 0:00:15]} Bh4 {[%emt 0:01:14]} 36. Bf5 $2 {[%emt 0:01:11]} ({But not} 36. Rd6 $6 f6 37. Bf5 (37. Rxc6 Bf2 $16) 37... Rg8 38. exf6 (38. Rxc6 Rxg1+ 39. Kxg1 fxe5 $16) 38... Rxg1+ 39. Kxg1 Rb8 $18) (36. e6 $18) 36... Rb5 $2 {[%emt 0:00:46][%mdl 8192]} (36... Bf2 $1 $11 {and Black stays safe.} 37. Rf1 Rb2) 37. Be4 $2 {[%emt 0:00:26]} (37. Rd6 $18 {[%cal Rd6h6]} Bg5 38. a4) 37... Ra5 $2 {[%emt 0:00:21][%mdl 8192]} (37... Bf2 $16) 38. Rg2 {[%emt 0:00:40]} Rc5 {[%emt 0:00:15]} 39. Kh2 {[%emt 0:00:13]} Rb5 {[%emt 0:00:52]} 40. Kh3 {[%emt 0:00:41]} Bd8 {[%emt 0:00:25]} 41. Bxc6 {[%emt 0:01:48]} Rc5 {[%emt 0:00:34]} (41... Rb1 {was worth a try.} 42. Kh2 Rc1) 42. Be4 {[%emt 0:00:27] And now Rd6 would win.} Rc7 {[%emt 0:00:22]} 43. Rxd4 {[%emt 0:00:33]} Be7 {[%emt 0:00:05]} 44. Bf3 {[%emt 0:00:51]} Rc1 {[%emt 0:00:40]} (44... Rd8 $142) 45. Kh2 {[%emt 0:00:55]} (45. Rd7 $142 Bd8 46. Bxh5) 45... Bc5 {[%emt 0:00:11]} 46. Re4 {[%emt 0:00:35]} Rd8 {[%emt 0:00:08] Against d4} (46... Rc3 $16 {was necessary.} 47. Bxh5 Rxd3) 47. e6 $2 {[%emt 0:00:55]} (47. Bxh5 $18 {Black must now prevent Ra4.} Rxd3 48. Bxf7) 47... Rxd3 $11 {[%emt 0:01:42] The position is equal.} 48. Be2 {[%emt 0:00:10]} Re3 {[%emt 0:00:04]} 49. Rxe3 {[%emt 0:00:52]} Bxe3 {[%emt 0:00:01][%mdl 4096] Endgame KRB-KRB} 50. Kg3 {[%emt 0:00:32]} ({Wrong is} 50. exf7 $2 Bxf4+ 51. Rg3 Bxg3+ 52. Kxg3 Kg7 53. Bxh5 Rg1+ 54. Kh4 Rh1+ 55. Kg4 Ra1 $19) 50... fxe6 {[%emt 0:00:15]} 51. Kf3 {[%emt 0:00:10]} Bd4 {[%emt 0:00:51]} 52. Ke4 {[%emt 0:00:04][%csl LRd4,LRh5]} Bg7 {[%emt 0:00:20]} 53. Bxh5 {[%emt 0:00:15]} Rc4+ {[%emt 0:00:05]} 54. Kf3 {[%emt 0:00:21]} e5 {[%emt 0:00:23]} 55. fxe5 {[%emt 0:00:29]} Bxe5 {[%emt 0:00:07]} 56. Bg6 {[%emt 0:00:28]} Rf4+ {[%emt 0:00:24]} 57. Ke3 {[%emt 0:00:01]} Ra4 {[%emt 0:00:08]} 58. Be8 {[%emt 0:00:20]} Ra8 {[%emt 0:00:39]} 59. Bf7 {[%emt 0:00:12]} Ra7 {[%emt 0:00:31]} 60. Bg6 {[%emt 0:00:26]} Ra4 {[%emt 0:00:16]} 61. Bf5 {[%emt 0:00:21]} h5 {[%emt 0:00:14]} 62. Bd3 {[%emt 0:01:38]} h4 {[%emt 0:00:29]} 63. Bf5 {[%emt 0:00:40]} Bg3 {[%emt 0:00:36]} 64. Rc2 {[%emt 0:00:21] Black escapes into a draw.  Weighted Error Value: White=0.46/Black=0.53} 1/2-1/2